bitfinex/quotes_BTCUSD_20250423
["timestamp","ask_amount","ask_price","bid_price","bid_amount"]
[1745429020053,0.06199,93793.0,93785.0,0.01066268]
[1745429020282,0.10689014,93792.0,93786.0,0.22391398]
[1745429020432,0.10689014,93792.0,93787.0,0.22391039]
[1745429020636,0.10689014,93792.0,93786.0,0.22391398]
[1745429020883,0.06199,93791.0,93787.0,0.22391095]
[1745429021097,0.10689014,93790.0,93787.0,0.22391095]
[1745429021301,0.10689014,93790.0,93784.0,0.22391791]
[1745429021455,0.0913,93789.0,93777.0,0.001]
[1745429021671,0.10558014,93788.0,93781.0,0.22392595]
[1745429021863,0.10558014,93788.0,93777.0,0.01071296]
[1745429022073,0.16757014,93788.0,93777.0,4.937e-05]
[1745429022272,0.0029837,93787.0,93777.0,4.937e-05]
[1745429022478,0.10689014,93786.0,93779.0,0.01066336]
[1745429022687,0.10689014,93786.0,93777.0,0.01071296]
[1745429022688,0.0029837,93785.0,93777.0,0.00104937]
[1745429022887,0.10689014,93784.0,93777.0,4.937e-05]
[1745429023061,0.0029837,93783.0,93777.0,4.937e-05]
[1745429023262,0.10689014,93782.0,93777.0,0.00104937]
[1745429023738,0.0029837,93781.0,93777.0,0.00104937]
[1745429023947,0.06199,93779.0,93777.0,0.00104937]
[1745429024169,0.17186384,93778.0,93777.0,0.00104937]
[1745429024384,0.17186384,93778.0,93777.0,4.937e-05]
[1745429024603,0.16888014,93778.0,93777.0,0.00104937]
[1745429025347,0.16988014,93778.0,93777.0,0.00204937]
[1745429025579,0.17188014,93778.0,93777.0,0.00204937]
[1745429025790,0.10989014,93778.0,93777.0,0.00204937]
[1745429026144,0.10989014,93778.0,93777.0,0.21532128]
[1745429026384,0.003,93778.0,93777.0,0.21532128]
[1745429036955,0.10989014,93778.0,93777.0,0.21532128]
[1745429037616,0.10989014,93778.0,93777.0,0.00204937]
[1745429038294,0.10989014,93778.0,93772.0,0.01066416]
[1745429038506,0.10989014,93778.0,93777.0,0.21327191]
[1745429038507,0.003,93778.0,93777.0,0.21327191]
[1745429038705,0.10989014,93778.0,93777.0,0.21327191]
[1745429039504,0.15809014,93778.0,93772.0,0.00046309]
[1745429039753,0.10987384,93777.0,93772.0,0.00046309]
[1745429039943,0.10987384,93777.0,93772.0,0.00146309]
[1745429040763,0.10987384,93777.0,93772.0,0.00046309]
[1745429040962,0.10789014,93777.0,93772.0,0.00146309]
[1745429041170,0.00556308,93776.0,93772.0,0.00146309]
[1745429041322,0.10689014,93775.0,93772.0,0.00146309]
[1745429041739,0.10689014,93775.0,93772.0,0.00046309]
[1745429043034,0.11189014,93775.0,93772.0,0.00046309]
[1745429044412,0.11589014,93775.0,93772.0,0.00046309]
[1745429046039,0.0029837,93774.0,93772.0,0.00046309]
[1745429046267,0.10689014,93773.0,93772.0,0.00046309]
[1745429048048,0.11089014,93773.0,93772.0,0.00046309]
[1745429048250,0.11489014,93773.0,93772.0,0.00046309]
[1745429055651,0.11489014,93773.0,93764.0,0.01066507]
[1745429055994,0.11489014,93773.0,93764.0,0.01080423]
[1745429056197,0.11489014,93773.0,93768.0,0.21329226]
[1745429056404,0.11489014,93773.0,93767.0,0.22395864]
[1745429056605,0.11089014,93773.0,93767.0,0.22395864]
[1745429056753,0.11389014,93773.0,93767.0,0.22395864]
[1745429056963,0.10989014,93773.0,93765.0,0.22396385]
[1745429057159,0.10689014,93773.0,93764.0,0.00013916]
[1745429057748,0.10889014,93773.0,93764.0,0.00013916]
[1745429057946,0.0029837,93772.0,93764.0,0.00013916]
[1745429058144,0.10689014,93771.0,93764.0,0.00013916]
[1745429059181,0.002,93773.0,93771.0,0.21328555]
[1745429059388,0.002,93773.0,93772.0,0.21328328]
[1745429059791,0.409,93781.0,93779.0,0.21326518]
[1745429060430,0.10689014,93780.0,93769.0,0.22395397]
[1745429060635,0.10689014,93780.0,93764.0,0.00013916]
[1745429060636,0.0029837,93779.0,93764.0,0.00013916]
[1745429060820,0.004,93773.0,93764.0,0.00013916]
[1745429061168,0.10689014,93772.0,93764.0,0.00013916]
[1745429061289,0.10689014,93772.0,93764.0,0.21344053]
[1745429061496,0.409,93781.0,93775.0,0.01066382]
[1745429061738,0.10689014,93780.0,93777.0,0.01066359]
[1745429061952,0.10689014,93780.0,93778.0,0.21326752]
[1745429062160,0.10689014,93780.0,93779.0,0.21326736]
[1745429062591,0.414,93781.0,93780.0,0.21326508]
[1745429063025,0.409,93781.0,93780.0,0.21326508]
[1745429063629,0.51589014,93781.0,93774.0,0.01066393]
[1745429063985,0.10689014,93780.0,93777.0,0.2239351]
[1745429064426,0.10689014,93780.0,93778.0,0.21326934]
[1745429064643,0.10689014,93780.0,93777.0,0.01066359]
[1745429064850,0.10689014,93780.0,93774.0,0.21327824]
[1745429065062,0.10689014,93780.0,93773.0,0.01066405]
[1745429065240,0.10689014,93780.0,93775.0,0.01066382]
[1745429065415,0.10689014,93780.0,93775.0,0.22394024]
[1745429065638,0.10689014,93780.0,93776.0,0.0106637]
[1745429065846,0.10989014,93780.0,93776.0,0.0106637]
[1745429066047,0.10989014,93780.0,93777.0,0.01066359]
[1745429066226,0.0029837,93779.0,93770.0,0.36784863]
[1745429066432,0.0499,93777.0,93764.0,0.00013916]
[1745429066641,0.10987384,93776.0,93764.0,0.00013916]
[1745429067070,0.10689014,93776.0,93764.0,0.00013916]
[1745429067417,0.00997228,93775.0,93770.0,0.001]
[1745429067625,0.00997228,93775.0,93764.0,0.01080423]
[1745429067626,0.01066405,93773.0,93764.0,0.00013916]
[1745429067834,0.10987384,93772.0,93764.0,0.00013916]
[1745429068047,0.10987384,93772.0,93764.0,0.00113916]
[1745429068269,0.10987384,93772.0,93764.0,0.00013916]
[1745429068448,0.10987384,93772.0,93770.0,0.001]
[1745429068685,0.10689014,93772.0,93770.0,0.001]
[1745429069637,0.10689014,93772.0,93764.0,0.00013916]
[1745429069845,0.11189014,93772.0,93764.0,0.00013916]
[1745429070052,0.11489014,93772.0,93764.0,0.00013916]
[1745429070258,0.00997434,93771.0,93764.0,0.00013916]
[1745429070456,0.10689014,93770.0,93764.0,0.00013916]
[1745429071722,0.10989014,93770.0,93764.0,0.00013916]
[1745429072814,0.11189014,93770.0,93764.0,0.00013916]
[1745429076999,0.0099733,93769.0,93764.0,0.00013916]
[1745429077289,0.10689014,93768.0,93764.0,0.00013916]
[1745429078658,0.10987384,93768.0,93764.0,0.00013916]
[1745429078861,0.00997364,93767.0,93764.0,0.00013916]
[1745429079204,0.10987384,93766.0,93764.0,0.00013916]
[1745429079563,0.01994668,93765.0,93764.0,0.00013916]
[1745429079770,0.12683682,93765.0,93764.0,0.00013916]
[1745429079965,0.13681046,93765.0,93764.0,0.00013916]
[1745429080199,0.13979416,93765.0,93764.0,0.00013916]
[1745429080952,0.14279416,93765.0,93764.0,0.00013916]
[1745429081158,0.18879416,93765.0,93764.0,0.00013916]
[1745429081360,0.19179416,93765.0,93764.0,0.00013916]
[1745429081989,0.18881046,93765.0,93764.0,0.00013916]
[1745429085005,0.59781046,93765.0,93764.0,0.00013916]
[1745429085234,0.59481046,93765.0,93764.0,0.00013916]
[1745429086061,0.59181046,93765.0,93764.0,0.00013916]
[1745429086484,0.60281046,93765.0,93764.0,0.00013916]
[1745429087940,0.55681046,93765.0,93764.0,0.00013916]
[1745429088417,0.53686378,93765.0,93764.0,0.00013916]
[1745429088626,0.52689014,93765.0,93764.0,0.00013916]
[1745429091988,0.11789014,93765.0,93764.0,0.00013916]
[1745429094235,0.12786378,93765.0,93764.0,0.00013916]
[1745429097203,0.14781046,93765.0,93764.0,0.00013916]
[1745429099625,0.19849416,93765.0,93764.0,0.00013916]
[1745429100133,0.20107354,93765.0,93764.0,0.00013916]
[1745429100369,0.20855092,93765.0,93764.0,0.00013916]
[1745429100607,0.16085092,93765.0,93764.0,0.00013916]
[1745429100819,0.15338522,93765.0,93764.0,0.00013916]
[1745429102871,0.15338522,93765.0,93764.0,0.21344064]
[1745429103090,0.13342686,93765.0,93764.0,0.21344064]
[1745429103317,0.12345322,93765.0,93764.0,0.21344064]
[1745429103967,0.01056308,93765.0,93764.0,0.21344064]
[1745429104196,0.005,93765.0,93764.0,0.21444064]
[1745429104427,0.01995836,93780.0,93773.0,0.01066405]
[1745429104623,0.10689014,93779.0,93773.0,0.01066405]
[1745429104766,0.10689014,93779.0,93775.0,0.01066382]
[1745429105568,0.10689014,93779.0,93773.0,0.01066405]
[1745429105771,0.00556308,93782.0,93778.0,0.21326963]
[1745429105984,0.02742026,93801.0,93790.0,0.01066211]
[1745429106242,0.00556308,93794.0,93790.0,0.36784863]
[1745429106441,0.10689014,93793.0,93782.0,0.01066302]
[1745429106639,0.10689014,93793.0,93783.0,0.01066291]
[1745429106850,0.10689014,93793.0,93790.0,0.01066211]
[1745429107286,0.10689014,93793.0,93790.0,0.22390324]
[1745429107539,0.10989014,93793.0,93791.0,0.21323886]
[1745429107930,0.11289014,93793.0,93791.0,0.21323886]
[1745429108335,0.011,93793.0,93792.0,0.2132378]
[1745429108535,0.011,93793.0,93792.0,0.3071378]
[1745429109400,0.005,93793.0,93792.0,0.3071378]
[1745429109607,0.01,93793.0,93792.0,0.3071378]
[1745429110037,0.0004252,93803.0,93802.0,0.21321507]
[1745429111311,0.00488839,93803.0,93802.0,0.21321507]
[1745429112627,0.00488839,93803.0,93802.0,0.21421507]
[1745429112824,0.00488839,93803.0,93802.0,0.21321507]
[1745429113209,0.00188839,93803.0,93802.0,0.21719983]
[1745429113417,0.00188839,93803.0,93802.0,0.21421507]
[1745429113647,0.00288839,93803.0,93802.0,0.21421507]
[1745429115696,0.00188839,93803.0,93802.0,0.21421507]
[1745429115893,0.00188839,93803.0,93802.0,0.21521507]
[1745429116174,0.00188839,93803.0,93802.0,0.21421507]
[1745429116296,0.00288839,93803.0,93802.0,0.21521507]
[1745429116495,0.00188839,93803.0,93802.0,0.21421507]
[1745429116732,0.00188839,93803.0,93802.0,0.21521507]
[1745429116961,0.00488839,93803.0,93802.0,0.21621507]
[1745429117169,0.00488839,93803.0,93802.0,0.21521507]
[1745429117373,0.00088839,93803.0,93802.0,0.21321507]
[1745429117587,0.00488839,93803.0,93802.0,0.21521507]
[1745429118573,0.00488839,93803.0,93802.0,0.002]
[1745429118574,0.11177853,93803.0,93802.0,0.002]
[1745429118988,0.15927853,93803.0,93802.0,0.002]
[1745429119396,0.15927853,93803.0,93802.0,0.001]
[1745429119397,0.56400308,93803.0,93802.0,0.001]
[1745429119597,0.55901938,93803.0,93802.0,0.001]
[1745429119932,0.55901938,93803.0,93768.0,0.01066461]
[1745429119933,0.30843853,93803.0,93790.0,0.36784863]
[1745429120169,0.10689014,93799.0,93780.0,0.22392728]
[1745429120477,0.0029837,93798.0,93779.0,0.01066336]
[1745429120687,0.01454085,93802.0,93780.0,0.01066325]
[1745429120688,0.10689014,93797.0,93780.0,0.01066325]
[1745429121310,0.10689014,93797.0,93782.0,0.01066302]
[1745429121533,0.10689014,93797.0,93784.0,0.01066279]
[1745429121744,0.10689014,93797.0,93785.0,0.21325345]
[1745429122699,0.10689014,93797.0,93787.0,0.01066245]
[1745429122923,0.10989014,93797.0,93794.0,0.22389261]
[1745429123135,0.10989014,93797.0,93795.0,0.21322991]
[1745429123369,0.11189014,93797.0,93795.0,0.21322991]
[1745429123578,0.002,93797.0,93795.0,0.21322991]
[1745429123908,0.009,93797.0,93795.0,0.21322991]
[1745429124111,0.004,93797.0,93795.0,0.21322991]
[1745429124412,0.007,93797.0,93791.0,0.22390077]
[1745429124618,0.007,93797.0,93794.0,0.01066166]
[1745429124833,0.007,93797.0,93796.0,0.2132287]
[1745429125040,0.003,93797.0,93794.0,0.01066166]
[1745429125307,0.003,93797.0,93795.0,0.21322999]
[1745429125511,0.007,93797.0,93796.0,0.2132287]
[1745429125694,0.004,93797.0,93795.0,0.21323098]
[1745429125918,0.00188839,93803.0,93797.0,0.2238863]
[1745429126110,0.10689014,93802.0,93798.0,0.0106612]
[1745429126316,0.10689014,93802.0,93797.0,0.01066132]
[1745429126535,0.10689014,93802.0,93798.0,0.0106612]
[1745429126982,0.10689014,93802.0,93799.0,0.01066109]
[1745429127190,0.10689014,93802.0,93797.0,0.01166132]
[1745429127403,0.10689014,93802.0,93792.0,0.21323775]
[1745429127612,0.11089014,93802.0,93797.0,0.001]
[1745429127832,0.0029837,93801.0,93797.0,0.001]
[1745429128078,0.34,93798.0,93797.0,0.001]
[1745429128284,0.44689014,93798.0,93797.0,0.001]
[1745429128513,0.10689014,93798.0,93797.0,0.001]
[1745429128944,0.10689014,93798.0,93797.0,0.21322643]
[1745429129171,0.10689014,93798.0,93795.0,0.01066154]
[1745429129383,0.10689014,93797.0,93796.0,0.01066143]
[1745429130002,0.10689014,93797.0,93792.0,0.01066189]
[1745429130208,0.10689014,93797.0,93793.0,0.22389699]
[1745429130456,0.10689014,93797.0,93793.0,0.01066177]
[1745429130666,0.10689014,93797.0,93792.0,0.01066189]
[1745429130881,0.10689014,93797.0,93784.0,0.21325391]
[1745429130882,0.0029837,93796.0,93785.0,0.01066268]
[1745429131084,0.10689014,93795.0,93773.0,0.01066405]
[1745429131267,0.15697384,93795.0,93776.0,0.21327393]
[1745429131491,0.0492,93794.0,93770.0,0.10096]
[1745429131694,0.0492,93794.0,93750.0,0.0008506]
[1745429131695,0.10987384,93793.0,93769.0,0.0106645]
[1745429131932,0.01066189,93792.0,93764.0,0.2133001]
[1745429132191,0.01066211,93790.0,93765.0,0.21329851]
[1745429132434,0.01066211,93790.0,93755.0,0.26097091]
[1745429132435,0.01066279,93784.0,93759.0,0.01066564]
[1745429132645,0.12981672,93783.0,93765.0,0.01066496]
[1745429132815,0.12981672,93783.0,93755.0,0.0008504]
[1745429132816,0.12981672,93783.0,93770.0,0.001]
[1745429133155,0.05805911,93782.0,93758.0,0.01066575]
[1745429133366,0.05805911,93782.0,93780.0,0.21326357]
[1745429133367,0.10689014,93781.0,93780.0,0.21326357]
[1745429133577,0.00995911,93782.0,93780.0,0.21326357]
[1745429134194,0.002,93783.0,93782.0,0.21326054]
[1745429134445,0.10889014,93783.0,93782.0,0.21326054]
[1745429135259,0.10889014,93783.0,93781.0,0.21326281]
[1745429135858,0.10689014,93783.0,93781.0,0.21326281]
[1745429136063,0.004,93782.0,93781.0,0.21326281]
[1745429136470,0.10689014,93783.0,93781.0,0.21326281]
[1745429136681,0.11189014,93783.0,93781.0,0.21326281]
[1745429137319,0.11289014,93782.0,93779.0,0.01066336]
[1745429137532,0.11289014,93782.0,93769.0,0.0106645]
[1745429137764,0.11289014,93782.0,93763.0,0.01066518]
[1745429138054,0.0029837,93781.0,93764.0,0.01066507]
[1745429138234,0.10689014,93780.0,93767.0,0.22395884]
[1745429138385,0.12679161,93780.0,93768.0,0.01066461]
[1745429138591,0.00995029,93779.0,93770.0,0.01066439]
[1745429138805,0.10689014,93778.0,93771.0,0.01066427]
[1745429139018,0.10689014,93778.0,93770.0,0.01066439]
[1745429139225,0.10689014,93778.0,93767.0,0.01066473]
[1745429139593,0.10689014,93778.0,93768.0,0.22395639]
[1745429139794,0.10689014,93778.0,93770.0,0.21328741]
[1745429139980,0.00995029,93777.0,93773.0,0.22394402]
[1745429140210,0.00995029,93777.0,93774.0,0.22394249]
[1745429140389,0.10689014,93776.0,93775.0,0.21327645]
[1745429140606,0.10689014,93776.0,93774.0,0.22394183]
[1745429140794,0.10689014,93776.0,93774.0,0.01066393]
[1745429141221,0.10689014,93776.0,93771.0,0.01066427]
[1745429141433,0.10689014,93776.0,93771.0,0.2239497]
[1745429141659,0.10689014,93776.0,93773.0,0.22394478]
[1745429141833,0.10689014,93776.0,93773.0,0.01066405]
[1745429142493,0.10689014,93776.0,93773.0,0.22394403]
[1745429142701,0.10889014,93776.0,93773.0,0.22394403]
[1745429142912,0.10889014,93776.0,93773.0,0.01066405]
[1745429143133,0.11189014,93776.0,93773.0,0.01066405]
[1745429143547,0.11489014,93776.0,93774.0,0.21327859]
[1745429144557,0.11489014,93776.0,93773.0,0.01066405]
[1745429144887,0.10989014,93776.0,93772.0,0.22394735]
[1745429145116,0.11289014,93776.0,93772.0,0.22394735]
[1745429145338,0.10989014,93776.0,93772.0,0.22394735]
[1745429145539,0.11389014,93776.0,93773.0,0.01066405]
[1745429145756,0.11389014,93776.0,93772.0,0.22394735]
[1745429145972,0.10689014,93776.0,93772.0,0.22394735]
[1745429146173,0.10989014,93776.0,93773.0,0.01066405]
[1745429146407,0.10989014,93776.0,93771.0,0.2239477]
[1745429146408,0.11289014,93776.0,93771.0,0.01066427]
[1745429146626,0.11289014,93776.0,93773.0,0.01066405]
[1745429146862,0.11589014,93776.0,93772.0,0.01066416]
[1745429147087,0.11289014,93776.0,93773.0,0.01066405]
[1745429147309,0.006,93776.0,93775.0,0.21327645]
[1745429147986,0.01551037,93793.0,93790.0,0.01066211]
[1745429148223,0.00743827,93809.0,93790.0,0.01066211]
[1745429148224,0.0467,93804.0,93791.0,0.21323955]
[1745429148471,0.12074147,93808.0,93800.0,0.22387906]
[1745429148472,0.10689014,93802.0,93800.0,0.22387906]
[1745429148696,0.01990147,93808.0,93802.0,0.21321507]
[1745429148913,0.10777853,93803.0,93802.0,0.21321507]
[1745429149548,0.11177853,93803.0,93802.0,0.21321507]
[1745429149752,0.11177853,93803.0,93796.0,0.01066143]
[1745429149960,0.11289014,93802.0,93796.0,0.01066143]
[1745429150168,0.11289014,93802.0,93793.0,0.3785104]
[1745429150386,0.11289014,93802.0,93787.0,0.01066245]
[1745429150595,0.10689014,93802.0,93790.0,0.37851074]
[1745429150801,0.10689014,93802.0,93796.0,0.01066143]
[1745429151647,0.10689014,93802.0,93795.0,0.01066154]
[1745429152288,0.11089014,93802.0,93795.0,0.01066154]
[1745429152953,0.11489014,93802.0,93797.0,0.22388652]
[1745429153128,0.11789014,93802.0,93798.0,0.22388424]
[1745429153514,0.11489014,93802.0,93798.0,0.0106612]
[1745429153714,0.11489014,93802.0,93797.0,0.01066132]
[1745429154144,0.11489014,93802.0,93796.0,0.01066143]
[1745429154314,0.11889014,93802.0,93796.0,0.01066143]
[1745429154834,0.11089014,93802.0,93796.0,0.01066143]
[1745429155043,0.11489014,93802.0,93796.0,0.01066143]
[1745429155198,0.11489014,93802.0,93798.0,0.0106612]
[1745429155415,0.008,93802.0,93800.0,0.21321796]
[1745429155616,0.012,93802.0,93800.0,0.21321796]
[1745429155855,0.008,93802.0,93800.0,0.21321796]
[1745429156123,0.013,93802.0,93800.0,0.21321796]
[1745429156338,0.013,93802.0,93799.0,0.22388297]
[1745429156339,0.013,93802.0,93798.0,0.2238805]
[1745429156541,0.00088839,93803.0,93800.0,0.2238799]
[1745429156783,0.00088839,93803.0,93801.0,0.21321685]
[1745429156784,0.10777853,93803.0,93801.0,0.21321685]
[1745429156987,0.011,93802.0,93801.0,0.21321685]
[1745429157399,0.005,93802.0,93801.0,0.21321685]
[1745429157914,0.11377853,93803.0,93802.0,0.21321507]
[1745429158743,0.11277853,93803.0,93802.0,0.21321507]
[1745429159377,0.11777853,93803.0,93802.0,0.21321507]
[1745429159986,0.12377853,93803.0,93798.0,0.0106612]
[1745429160189,0.12377853,93803.0,93792.0,0.01066189]
[1745429160190,0.10689014,93802.0,93792.0,0.01066189]
[1745429160385,0.10689014,93802.0,93786.0,0.01066257]
[1745429160625,0.0472,93800.0,93780.0,0.36784863]
[1745429160829,0.046,93798.0,93782.0,0.01066302]
[1745429161180,0.10987384,93797.0,93784.0,0.01066279]
[1745429161598,0.10987384,93797.0,93786.0,0.01066257]
[1745429161817,0.10987384,93797.0,93785.0,0.22391639]
[1745429162026,0.10987384,93797.0,93786.0,0.01066257]
[1745429162230,0.10987384,93797.0,93785.0,0.21325276]
[1745429162231,0.10689014,93797.0,93785.0,0.21325276]
[1745429162438,0.10689014,93797.0,93789.0,0.01066223]
[1745429162647,0.10689014,93797.0,93787.0,0.01066245]
[1745429162853,0.10689014,93797.0,93788.0,0.01066234]
[1745429163042,0.10689014,93797.0,93786.0,0.01066257]
[1745429163250,0.10789014,93797.0,93786.0,0.22391247]
[1745429163475,0.10989014,93797.0,93786.0,0.22391247]
[1745429163684,0.10989014,93797.0,93787.0,0.01066245]
[1745429163884,0.10989014,93797.0,93787.0,0.22391051]
[1745429164153,0.10989014,93797.0,93787.0,0.01066245]
[1745429164393,0.10989014,93797.0,93793.0,0.21323547]
[1745429164600,0.10989014,93797.0,93791.0,0.22390184]
[1745429164803,0.10889014,93797.0,93795.0,0.21322872]
[1745429165020,0.10689014,93797.0,93796.0,0.2132287]
[1745429165373,0.00088839,93803.0,93802.0,0.21321507]
[1745429165586,0.10777853,93803.0,93801.0,0.21321694]
[1745429165785,0.10689014,93802.0,93800.0,0.01066098]
[1745429165993,0.10689014,93802.0,93799.0,0.01066109]
[1745429166424,0.0029837,93801.0,93782.0,0.01066302]
[1745429166620,0.0954,93799.0,93782.0,0.01066302]
[1745429166839,0.10987384,93798.0,93786.0,0.01066257]
[1745429167256,0.10689014,93798.0,93791.0,0.010662]
[1745429167868,0.10689014,93798.0,93794.0,0.01066166]
[1745429168415,0.10689014,93798.0,93793.0,0.22389717]
[1745429168617,0.10689014,93798.0,93794.0,0.01066166]
[1745429168822,0.004,93797.0,93794.0,0.01066166]
[1745429169032,0.10689014,93796.0,93793.0,0.22389729]
[1745429169232,0.10689014,93796.0,93793.0,0.01066177]
[1745429169595,0.10689014,93796.0,93793.0,0.22389542]
[1745429169994,0.10689014,93796.0,93785.0,0.01066268]
[1745429170195,0.11389014,93796.0,93793.0,0.22389687]
[1745429170553,0.11389014,93796.0,93779.0,0.01066336]
[1745429170742,0.11389014,93796.0,93785.0,0.213253]
[1745429170989,0.11389014,93796.0,93780.0,0.01066325]
[1745429170990,0.11389014,93796.0,93790.0,0.01066211]
[1745429171215,0.11389014,93796.0,93788.0,0.01066234]
[1745429171428,0.10989014,93796.0,93790.0,0.01066211]
[1745429171641,0.10989014,93796.0,93789.0,0.21324242]
[1745429171859,0.10989014,93796.0,93791.0,0.010662]
[1745429172264,0.11189014,93796.0,93791.0,0.010662]
[1745429172428,0.10889014,93796.0,93790.0,0.22390347]
[1745429172643,0.11389014,93796.0,93788.0,0.01066234]
[1745429172850,0.11189014,93796.0,93789.0,0.01066223]
[1745429173511,0.10989014,93796.0,93790.0,0.01066211]
[1745429173725,0.10989014,93796.0,93789.0,0.01066223]
[1745429173940,0.11189014,93796.0,93792.0,0.01066189]
[1745429174563,0.11189014,93796.0,93790.0,0.01066211]
[1745429174770,0.10889014,93796.0,93786.0,0.01066257]
[1745429175207,0.0029837,93795.0,93783.0,0.01066291]
[1745429175433,0.10689014,93794.0,93768.0,0.0479]
[1745429175647,0.15479014,93792.0,93769.0,0.0106645]
[1745429175871,0.0029837,93791.0,93773.0,0.22394437]
[1745429176068,0.10689014,93790.0,93776.0,0.0106637]
[1745429176279,0.10689014,93790.0,93772.0,0.01066416]
[1745429176280,0.0029837,93789.0,93765.0,0.01066496]
[1745429176498,0.1731939,93788.0,93783.0,0.001]
[1745429176715,0.0029837,93787.0,93774.0,0.01066393]
[1745429176949,0.10689014,93786.0,93774.0,0.01066393]
[1745429177171,0.1267939,93786.0,93775.0,0.22394015]
[1745429177389,0.1267939,93786.0,93777.0,0.01066359]
[1745429177613,0.02986844,93785.0,93777.0,0.01066359]
[1745429177824,0.02986844,93785.0,93776.0,0.21327359]
[1745429177825,0.10689014,93784.0,93776.0,0.0106637]
[1745429178053,0.1267939,93784.0,93777.0,0.01066359]
[1745429178527,0.02986844,93783.0,93776.0,0.0106637]
[1745429178778,0.10689014,93782.0,93776.0,0.0106637]
[1745429178972,0.10689014,93782.0,93775.0,0.22394015]
[1745429178973,0.10689014,93782.0,93777.0,0.01066359]
[1745429179143,0.0459,93781.0,93776.0,0.0106637]
[1745429179368,0.10689014,93780.0,93776.0,0.0106637]
[1745429179581,0.11685482,93780.0,93775.0,0.01066382]
[1745429180325,0.11685482,93780.0,93736.0,0.0008504]
[1745429180326,0.0029837,93779.0,93762.0,0.0106653]
[1745429180556,0.10689014,93778.0,93759.0,0.21331136]
[1745429180771,0.01454085,93776.0,93753.0,0.0008496]
[1745429180984,0.10987384,93775.0,93753.0,0.0008496]
[1745429181205,0.0467,93774.0,93756.0,0.21331896]
[1745429181421,0.10987384,93773.0,93754.0,0.0008502]
[1745429181638,0.0498,93772.0,93754.0,0.0008502]
[1745429181861,0.10689014,93766.0,93754.0,0.0008502]
[1745429182079,0.0527837,93765.0,93754.0,0.0008502]
[1745429182287,0.10689014,93764.0,93754.0,0.0008502]
[1745429182498,0.0512837,93763.0,93754.0,0.0008502]
[1745429182678,0.13677566,93762.0,93754.0,0.0008502]
[1745429183091,0.0029837,93761.0,93754.0,0.0008502]
[1745429183304,0.10689014,93760.0,93754.0,0.0008502]
[1745429183516,0.0029837,93759.0,93754.0,0.0008502]
[1745429183667,0.10689014,93758.0,93754.0,0.0008502]
[1745429183872,0.0029837,93757.0,93754.0,0.0008502]
[1745429184073,0.0483,93763.0,93754.0,0.0008502]
[1745429184074,0.15517384,93756.0,93754.0,0.0008502]
[1745429185340,0.15519014,93756.0,93754.0,0.0008502]
[1745429185682,0.15919014,93756.0,93754.0,0.0008502]
[1745429188583,0.38805067,93756.0,93754.0,0.0008502]
[1745429188814,0.22353099,93756.0,93754.0,0.0008502]
[1745429189697,0.22053099,93756.0,93754.0,0.0008502]
[1745429189905,0.22153099,93756.0,93754.0,0.0008502]
[1745429190134,0.21693055,93756.0,93754.0,0.0008502]
[1745429190356,0.22293055,93756.0,93754.0,0.0008502]
[1745429190813,0.2374714,93756.0,93754.0,0.0008502]
[1745429191107,0.81573635,93756.0,93754.0,0.0008502]
[1745429191345,0.78641375,93756.0,93754.0,0.0008502]
[1745429191728,0.79437811,93756.0,93754.0,0.0008502]
[1745429192176,0.80431852,93756.0,93754.0,0.0008502]
[1745429192592,0.82421683,93756.0,93754.0,0.0008502]
[1745429192823,0.66466508,93754.0,93753.0,0.0008496]
[1745429193047,0.79145353,93754.0,93753.0,0.0008496]
[1745429193294,0.80139394,93754.0,93753.0,0.0008496]
[1745429193522,0.35554085,93749.0,93748.0,0.0008504]
[1745429193751,0.61887873,93748.0,93747.0,0.0008504]
[1745429193982,0.61889466,93741.0,93711.0,0.002]
[1745429194201,0.7257848,93741.0,93740.0,0.09467017]
[1745429194413,0.7257848,93741.0,93740.0,0.05736133]
[1745429194414,0.80539587,93741.0,93740.0,0.05736133]
[1745429194595,0.56891515,93732.0,93711.0,0.002]
[1745429194813,0.76750529,93732.0,93711.0,0.002]
[1745429195023,0.81461352,93732.0,93711.0,0.002]
[1745429195663,0.61326068,93712.0,93711.0,0.002]
[1745429195879,0.86891082,93712.0,93711.0,0.002]
[1745429196331,0.65549099,93712.0,93711.0,0.002]
[1745429197200,0.6654314,93712.0,93711.0,0.002]
[1745429197442,0.6764314,93712.0,93711.0,0.002]
[1745429198751,0.6714314,93712.0,93711.0,0.002]
[1745429199187,0.6724314,93712.0,93711.0,0.002]
[1745429199625,0.6804314,93712.0,93711.0,0.002]
[1745429200967,0.2471314,93712.0,93711.0,0.002]
[1745429201194,0.22265014,93712.0,93711.0,0.002]
[1745429201767,0.12189014,93712.0,93711.0,0.002]
[1745429202568,0.007,93712.0,93711.0,0.002]
[1745429203199,0.013,93712.0,93711.0,0.002]
[1745429203441,0.006,93712.0,93711.0,0.002]
[1745429203854,0.011,93712.0,93711.0,0.002]
[1745429204068,0.006,93712.0,93711.0,0.002]
[1745429204430,0.003,93712.0,93711.0,0.002]
[1745429205624,0.10989014,93712.0,93711.0,0.002]
[1745429206195,0.11983055,93712.0,93711.0,0.002]
[1745429206464,0.12383055,93712.0,93711.0,0.002]
[1745429207383,0.14372886,93712.0,93711.0,0.002]
[1745429209742,0.12383055,93712.0,93711.0,0.002]
[1745429210705,0.14366184,93712.0,93711.0,0.002]
[1745429215833,0.15858433,93712.0,93711.0,0.002]
[1745429216300,0.51312518,93712.0,93711.0,0.002]
[1745429216587,0.49820269,93712.0,93711.0,0.002]
[1745429216795,0.50562837,93712.0,93711.0,0.002]
[1745429217010,0.50162837,93712.0,93711.0,0.002]
[1745429217413,0.50762837,93712.0,93711.0,0.002]
[1745429217560,0.01454085,93711.0,93693.0,0.0004252]
[1745429217794,0.10689014,93708.0,93693.0,0.0004252]
[1745429218150,0.01983129,93707.0,93693.0,0.0004252]
[1745429218372,0.12672143,93706.0,93694.0,0.01067304]
[1745429218571,0.12672143,93706.0,93697.0,0.36784863]
[1745429218788,0.0297717,93705.0,93697.0,0.36784863]
[1745429218999,0.10689014,93704.0,93697.0,0.36784863]
[1745429219219,0.10689014,93704.0,93693.0,0.0004252]
[1745429219427,0.01983129,93703.0,93693.0,0.0004252]
[1745429219646,0.10689014,93702.0,93693.0,0.0004252]
[1745429219843,0.13666184,93702.0,93693.0,0.0004252]
[1745429220545,0.01983129,93701.0,93693.0,0.0004252]
[1745429220760,0.10689014,93700.0,93693.0,0.00056436]
[1745429220986,0.10689014,93700.0,93693.0,0.01123751]
[1745429221177,0.10689014,93700.0,93693.0,0.00056436]
[1745429221888,0.10989014,93700.0,93693.0,0.00056436]
[1745429222098,0.00994041,93699.0,93693.0,0.01123751]
[1745429222322,0.10689014,93698.0,93693.0,0.01123751]
[1745429222547,0.10689014,93698.0,93693.0,0.00056436]
[1745429223003,0.00994041,93697.0,93693.0,0.00056436]